bitfinex-derivatives/quotes_ETHF0:USTF0_20260214
["timestamp","ask_amount","ask_price","bid_price","bid_amount"]
[1771084170855,0.5765558,2086.9,2086.0,0.20307867]
[1771084171761,0.5765558,2086.9,2086.2,0.48649992]
[1771084171958,0.5765558,2086.9,2086.1,0.23976]
[1771084172157,0.5765558,2086.9,2086.1,0.72625992]
[1771084172961,0.5765558,2086.9,2086.2,0.5086396]
[1771084177867,0.5765558,2086.9,2086.4,0.59204794]
[1771084178267,0.5740545,2087.0,2086.4,0.59204794]
[1771084178870,0.5740545,2087.0,2086.6,0.59848741]
[1771084179572,0.00339863,2087.0,2086.6,0.59848741]
[1771084179767,0.5740545,2087.0,2086.6,0.59848741]
[1771084183276,0.72495641,2087.2,2086.7,0.98038223]
[1771084183775,0.72495641,2087.2,2086.8,0.74069223]
[1771084184076,0.72495641,2087.2,2086.8,0.24199223]
[1771084184276,0.72925524,2087.2,2086.8,0.24199223]
[1771084186775,0.72925524,2087.2,2086.7,0.98038223]
[1771084187278,0.72925524,2087.2,2086.8,0.74069223]
[1771084187474,0.72925524,2087.2,2086.7,0.98038223]
[1771084188179,0.72925524,2087.2,2086.8,0.74069223]
[1771084188377,0.72925524,2087.2,2086.7,0.23969]
[1771084192690,0.72925524,2087.2,2086.7,0.98038223]
[1771084193288,0.72925524,2087.2,2086.8,0.74069223]
[1771084193591,0.72925524,2087.2,2086.7,0.98038223]
[1771084193791,0.72925524,2087.2,2086.7,0.23969]
[1771084200098,0.72925524,2087.2,2086.6,0.74069223]
[1771084200693,0.72925524,2087.2,2086.1,0.74069223]
[1771084201793,0.72925524,2087.2,2086.8,0.94367159]
[1771084204500,0.72925524,2087.2,2086.7,0.23969]
[1771084204702,0.72925524,2087.2,2086.7,1.18336159]
[1771084206201,0.72925524,2087.2,2086.8,0.94367159]
[1771084217299,40.8,2087.3,2087.0,0.94367159]
[1771084217506,20.80673178,2087.4,2087.1,1.18332159]
[1771084217900,20.80673178,2087.4,2086.7,0.94367159]
[1771084218307,20.81103596,2087.4,2086.7,0.94367159]
[1771084219210,20.81103596,2087.4,2087.1,0.23965]
[1771084219411,0.92173178,2087.3,2087.1,0.23965]
[1771084219712,0.92173178,2087.3,2087.0,0.94367159]
[1771084220509,0.92173178,2087.3,2086.6,0.94367159]
[1771084220718,0.92173178,2087.3,2086.8,0.94367159]
[1771084223921,20.81103596,2087.4,2087.0,0.94367159]
[1771084226016,20.81103596,2087.4,2087.1,1.18332159]
[1771084226821,0.59502178,2087.4,2087.1,1.18332159]
[1771084227823,0.59927081,2087.4,2087.1,1.18332159]
[1771084228924,0.92173178,2087.4,2087.1,1.18332159]
[1771084230016,0.92517956,2087.4,2087.1,1.18332159]
[1771084233931,0.92517956,2087.4,2087.1,0.23965]
[1771084234331,0.92517956,2087.4,2087.1,1.36634919]
[1771084236537,0.92517956,2087.4,2087.1,1.36634919]
[1771084240732,0.92517956,2087.4,2086.9,1.20501152]
[1771084242234,0.92517956,2087.4,2087.1,0.23965]
[1771084242435,0.92517956,2087.4,2086.9,1.20501152]
[1771084244131,0.92517956,2087.4,2086.4,1.20501152]
[1771084244435,1.13329805,2087.3,2086.7,1.44470152]
[1771084244631,1.13674583,2087.4,2086.7,1.44470152]
[1771084245138,1.42922889,2087.6,2087.0,1.20501152]
[1771084245139,1.13329805,2087.6,2087.0,1.20501152]
[1771084245939,1.13728929,2087.6,2087.0,1.20501152]
[1771084248343,1.13728929,2087.6,2087.1,1.44466152]
[1771084248542,1.13329805,2087.5,2087.1,1.44466152]
[1771084248840,1.13329805,2087.5,2087.1,0.23965]
[1771084249043,1.13329805,2087.3,2086.9,1.20501152]
[1771084249338,1.13329805,2087.1,2086.4,1.44474152]
[1771084249643,1.13329805,2086.9,2086.4,1.44474152]
[1771084250141,1.13329805,2086.7,2086.4,1.44474152]
[1771084250943,1.42922889,2087.0,2086.4,1.44474152]
[1771084251143,2.56252694,2087.0,2086.4,1.44474152]
[1771084251345,1.13329805,2086.9,2086.4,1.44474152]
[1771084251844,1.13329805,2086.7,2086.4,0.23973]
[1771084252039,1.42922889,2087.2,2086.4,1.44474152]
[1771084252247,1.13329805,2087.3,2086.4,1.44474152]
[1771084254235,1.13329805,2087.3,2086.9,1.20501152]
[1771084254642,1.13329805,2087.3,2086.9,0.70501152]
[1771084255844,1.13329805,2087.5,2086.9,0.70501152]
[1771084256443,1.13329805,2087.3,2086.8,0.23967]
[1771084256844,1.13329805,2087.3,2086.8,1.44468152]
[1771084257143,1.13329805,2087.5,2086.8,1.44468152]
[1771084257547,0.00399124,2087.6,2086.8,1.44468152]
[1771084257846,1.13728929,2087.6,2086.8,1.44468152]
[1771084259351,1.13728929,2087.6,2087.2,1.44463152]
[1771084260453,1.13728929,2087.6,2087.2,0.23962]
[1771084262556,1.13728929,2087.6,2087.2,1.47424604]
[1771084263558,1.13728929,2087.6,2087.2,0.23962]
[1771084264661,1.25294565,2087.1,2086.5,1.47433604]
[1771084265858,1.25294565,2087.1,2086.5,0.23971]
[1771084266059,1.25294565,2086.9,2086.5,0.23971]
[1771084266261,1.25294565,2086.9,2086.2,1.23462604]
[1771084267161,1.25294565,2086.9,2086.5,0.23971]
[1771084267361,1.17267094,2086.9,2086.5,0.23971]
[1771084267659,1.17267094,2086.9,2086.1,1.23462604]
[1771084267860,1.25294565,2086.7,2086.1,1.23462604]
[1771084269159,1.25294565,2086.7,2086.5,0.23971]
[1771084269462,1.25294565,2086.7,2086.2,1.23462604]
[1771084270065,1.25294565,2086.7,2086.5,0.23971]
[1771084270366,1.25294565,2087.4,2086.5,0.23971]
[1771084271868,6.36971208,2087.3,2086.5,0.23971]
[1771084272069,1.25294565,2087.2,2086.5,0.23971]
[1771084275867,1.25294565,2087.1,2086.0,1.47818246]
[1771084278074,1.25294565,2086.8,2086.0,0.24355642]
[1771084279072,1.25294565,2086.6,2086.0,0.24355642]
[1771084279469,1.25294565,2086.5,2085.2,1.23462604]
[1771084280472,1.25294565,2086.5,2085.2,1.24035838]
[1771084280676,1.25294565,2086.5,2085.8,1.23462604]
[1771084280970,1.25294565,2086.5,2085.9,1.47440604]
[1771084283469,1.25294565,2086.5,2085.9,0.23978]
[1771084284374,1.25294565,2086.3,2085.9,0.23978]
[1771084285177,1.25294565,2086.3,2085.5,1.23462604]
[1771084286078,1.25294565,2086.3,2085.9,0.23978]
[1771084286277,1.25294565,2086.3,2085.6,1.23462604]
[1771084286572,1.25294565,2086.3,2085.3,0.23985]
[1771084286877,1.25294565,2086.3,2085.3,1.47447604]
[1771084287775,1.25294565,2086.2,2085.3,1.47447604]
[1771084288572,1.25294565,2086.2,2085.3,0.23985]
[1771084288966,19.885,2086.1,2085.2,0.00573234]
[1771084289175,1.25294565,2086.0,2085.2,1.24035838]
[1771084289373,1.25294565,2086.0,2085.3,1.47447604]
[1771084296084,0.00551487,2086.1,2085.3,1.47447604]
[1771084296378,1.41217822,2086.1,2085.3,1.47447604]
[1771084305285,1.41217822,2086.1,2085.3,0.23985]
[1771084308189,1.41217822,2086.1,2085.3,1.58038328]
[1771084309086,1.37554465,2085.9,2085.0,1.34053328]
[1771084309290,1.37554465,2085.6,2084.8,1.58044328]
[1771084309488,1.37554465,2085.4,2084.5,1.34053328]
[1771084309684,1.37554465,2085.4,2084.7,1.34053328]
[1771084310182,1.37554465,2085.4,2084.7,1.34531336]
[1771084310386,1.37554465,2085.6,2084.9,1.34053328]
[1771084310584,1.37554465,2085.6,2084.8,0.23991]
[1771084312687,1.37554465,2085.6,2084.8,1.58044328]
[1771084315893,1.37554465,2086.0,2085.3,1.34053328]
[1771084316190,1.37554465,2086.0,2085.3,0.84053328]
[1771084319397,1.37554465,2086.0,2085.2,1.40756437]
[1771084319788,1.37554465,2086.0,2085.2,0.23986]
[1771084320196,1.37554465,2086.0,2085.0,1.17275352]
[1771084320392,1.37554465,2085.8,2085.0,1.17275352]
[1771084320899,1.37554465,2085.8,2084.8,1.17727709]
[1771084321095,1.37554465,2085.6,2084.7,1.42197717]
[1771084323200,1.37554465,2085.6,2085.2,1.21758643]
[1771084323393,1.37554465,2085.6,2085.1,0.23987]
[1771084323901,1.37554465,2085.6,2085.1,1.46624667]
[1771084324696,1.37554465,2085.6,2085.1,0.23987]
[1771084324896,1.37554465,2085.6,2084.9,1.23069672]
[1771084325096,1.37554465,2085.6,2085.1,0.23987]
[1771084325398,1.37554465,2085.6,2085.1,1.48739342]
[1771084325798,1.37554465,2085.6,2085.1,0.23987]
[1771084326694,1.37554465,2085.6,2085.1,1.49629819]
[1771084330101,1.46570985,2086.0,2085.1,1.49629819]
[1771084330892,1.46570985,2086.0,2085.4,1.38999089]
[1771084332405,1.46570985,2086.0,2085.3,1.62984089]
[1771084335002,1.46570985,2086.0,2085.6,1.38999089]
[1771084335208,1.46570985,2086.0,2085.5,1.62982089]
[1771084335406,1.46570985,2086.0,2085.5,1.12982089]
[1771084336206,1.46570985,2086.0,2085.5,0.23983]
[1771084338105,1.46570985,2086.0,2085.1,1.38999089]
[1771084339104,1.46570985,2086.0,2085.5,0.23983]
[1771084340214,1.46570985,2085.8,2085.5,0.23983]
[1771084340816,1.46570985,2085.8,2085.2,1.38999089]
[1771084341212,1.46570985,2085.8,2085.5,0.23983]
[1771084341410,1.46570985,2085.8,2085.2,1.38999089]
[1771084342118,1.46570985,2085.8,2085.5,0.23983]
[1771084342817,1.46570985,2085.8,2085.2,1.38999089]
[1771084343316,1.46570985,2085.8,2085.5,0.23983]
[1771084345416,1.46570985,2085.8,2085.1,1.38999089]
[1771084346115,1.46570985,2085.8,2085.5,0.23983]
[1771084346514,1.46570985,2085.8,2085.2,1.38999089]
[1771084347210,1.46570985,2085.8,2085.5,0.23983]
[1771084348216,1.46570985,2085.8,2085.5,1.62982089]
[1771084351119,1.46570985,2085.8,2085.5,0.23983]
[1771084351719,1.46570985,2085.8,2085.5,1.67930979]
[1771084353519,1.46570985,2085.8,2085.5,1.17930979]
[1771084354120,1.46570985,2085.8,2085.5,1.41913979]
[1771084354316,1.4513549,2086.0,2085.5,1.41913979]
[1771084355620,1.4513549,2086.0,2085.5,0.23983]
[1771084357620,1.4513549,2085.8,2085.2,1.43947979]
[1771084358117,1.4513549,2085.8,2085.0,1.67935979]
[1771084361522,1.58649283,2085.6,2085.0,1.67935979]
[1771084362312,1.58649283,2085.4,2085.0,0.23988]
[1771084368424,1.58649283,2085.2,2084.7,0.00478008]
[1771084369321,42.38649283,2085.2,2084.7,0.00478008]
[1771084369524,1.58649283,2085.1,2084.7,0.00478008]
[1771084370223,42.38649283,2085.2,2084.8,1.79877421]
[1771084370527,1.10683283,2085.2,2084.8,1.79877421]
[1771084374929,1.10683283,2085.2,2084.8,0.23991]
[1771084376526,1.58649283,2085.0,2084.4,1.55886421]
[1771084377629,1.58649283,2085.0,2084.4,1.5646629]
[1771084381725,1.58649283,2085.0,2084.5,1.82389108]
[1771084382430,1.58649283,2085.0,2084.5,0.23994]
[1771084383132,1.58649283,2085.0,2084.1,0.63386391]
[1771084383335,1.49809433,2084.8,2084.1,0.63386391]
[1771084384036,1.49809433,2084.8,2084.1,0.63938165]
[1771084384232,5.47609433,2085.0,2084.3,1.58395108]
[1771084384432,1.49809433,2084.9,2084.3,1.58395108]
[1771084384631,1.49809433,2084.9,2084.4,0.23996]
[1771084384935,1.49809433,2085.0,2084.5,1.58395108]
[1771084385937,1.49809433,2085.0,2084.4,0.23996]
[1771084386436,1.49809433,2085.0,2084.5,1.58395108]
[1771084387435,1.49809433,2085.4,2084.8,1.58395108]
[1771084388025,1.49809433,2085.3,2084.8,1.58395108]
[1771084390839,40.8,2085.4,2085.0,1.58395108]
[1771084391038,42.29809433,2085.4,2085.0,1.58395108]
[1771084391241,42.29809433,2085.4,2085.0,1.08395108]
[1771084391537,1.49809433,2085.3,2085.0,1.08395108]
[1771084392832,1.49809433,2085.3,2085.0,0.58395108]
[1771084393339,1.49809433,2085.3,2084.9,1.82385108]
[1771084395437,1.49809433,2085.3,2084.9,0.2399]
[1771084395643,1.49809433,2085.3,2084.5,1.58395108]
[1771084396243,1.49809433,2085.3,2084.6,1.82388108]
[1771084399944,1.49809433,2085.3,2084.6,0.23993]
[1771084400143,1.49809433,2085.3,2084.6,1.82388108]
[1771084400546,1.49809433,2085.1,2084.6,1.82388108]
[1771084401649,1.49809433,2085.1,2084.6,0.23993]
[1771084403845,1.49809433,2085.1,2084.6,1.82388108]
[1771084406745,1.49809433,2085.1,2084.6,0.23993]
[1771084406942,40.8,2085.4,2084.6,1.82388108]
[1771084407147,1.49809433,2085.3,2084.6,1.82388108]
[1771084408850,1.49809433,2085.3,2084.6,0.23993]
[1771084409350,1.49809433,2085.3,2084.1,1.58946882]
[1771084409551,1.49809433,2084.8,2084.1,1.58946882]
[1771084409741,1.49809433,2084.7,2084.1,1.58946882]
[1771084413149,1.49809433,2084.7,2084.0,0.24]
[1771084413555,1.49809433,2084.7,2083.8,1.69077253]
[1771084414154,1.65965717,2084.5,2083.8,1.69077253]
[1771084414356,1.66422649,2084.5,2083.8,1.69650713]
[1771084417558,1.66422649,2084.5,2084.0,1.69077253]
[1771084421756,1.66422649,2084.5,2083.8,1.56917305]
[1771084423051,1.66422649,2084.5,2084.0,1.56343845]
[1771084423255,1.66422649,2084.5,2084.2,1.56343845]
[1771084423659,1.66422649,2084.5,2084.2,1.06343845]
[1771084423860,1.60473805,2084.6,2084.2,1.06343845]
[1771084424056,1.60473805,2084.9,2084.2,1.06343845]
[1771084424761,1.60940461,2084.9,2084.2,1.06343845]
[1771084425353,1.60940461,2084.9,2084.4,1.56343845]
[1771084426064,0.00466656,2084.9,2084.4,1.56343845]
[1771084426460,1.60473805,2085.2,2084.6,1.56343845]
[1771084426864,40.8,2085.4,2084.6,1.56343845]
[1771084427064,42.40473805,2085.4,2084.6,1.56343845]
[1771084427260,1.60473805,2085.3,2084.6,1.56343845]
[1771084427465,1.61065072,2085.3,2084.6,1.56343845]
[1771084428567,1.61065072,2085.3,2084.8,1.56343845]
[1771084429763,0.00591267,2085.3,2084.8,1.56343845]
[1771084430560,0.00591267,2085.3,2085.0,1.56343845]
[1771084430865,1.60473805,2085.6,2085.0,1.56343845]
[1771084431259,1.60473805,2085.8,2085.2,1.56343845]
[1771084431462,42.40473805,2085.7,2085.2,1.56343845]
[1771084431658,1.60473805,2085.7,2085.2,1.56343845]
[1771084431858,1.60849285,2085.7,2085.2,1.56343845]
[1771084433170,1.60473805,2086.3,2085.4,1.56343845]
[1771084433665,1.60473805,2086.2,2085.4,1.56343845]
[1771084433860,1.60473805,2086.8,2085.6,1.56343845]
[1771084434063,1.60917419,2086.8,2085.6,1.56842944]
[1771084434264,1.60917419,2086.8,2085.8,1.56343845]
[1771084434668,1.60917419,2086.8,2086.0,1.56343845]
[1771084436472,1.60473805,2086.6,2086.0,1.56343845]
[1771084440973,1.60473805,2086.6,2085.9,0.23978]
[1771084442378,40.8,2086.5,2085.9,0.23978]
[1771084442583,1.67724951,2086.4,2085.9,0.23978]
[1771084443878,1.67724951,2086.4,2085.7,1.71212234]
[1771084444084,1.67724951,2086.4,2085.9,0.23978]
[1771084444684,1.67724951,2086.4,2085.9,1.95190234]
[1771084460291,1.67724951,2086.3,2085.9,0.23978]
[1771084460595,1.67724951,2086.1,2085.7,1.71212234]
[1771084461097,1.67724951,2086.1,2085.9,0.23978]
[1771084462091,1.67724951,2086.3,2085.9,1.95190234]
[1771084469298,1.67724951,2086.3,2085.9,0.23978]
[1771084474809,1.67724951,2086.3,2085.6,1.70581511]
[1771084475108,1.67724951,2086.3,2085.9,0.23978]
[1771084486724,1.68079041,2086.1,2085.6,0.00499099]
[1771084488724,1.68079041,2086.1,2085.4,0.23983]
[1771084488725,1.68079041,2085.9,2085.4,1.9246814]
[1771084489723,1.68079041,2085.9,2085.4,1.93070181]
[1771084493427,1.68079041,2085.9,2085.4,0.24585041]
[1771084494929,1.68079041,2085.9,2085.4,1.93070181]
[1771084497034,1.68079041,2085.9,2085.4,0.00602041]
[1771084497225,1.68079041,2085.7,2085.2,1.6848514]
[1771084497928,1.68079041,2085.7,2085.1,1.6848514]
[1771084498129,19.893,2086.3,2084.9,1.9247514]
[1771084498130,1.68079041,2085.5,2084.9,1.9247514]
[1771084498329,1.68079041,2085.5,2084.9,1.92958336]
[1771084498527,1.68079041,2085.5,2084.9,0.24473196]
[1771084498936,1.68079041,2085.3,2084.9,1.92958336]
[1771084499135,40.8,2085.4,2084.9,1.92958336]
[1771084499631,1.68079041,2085.6,2084.9,1.92958336]
[1771084500240,42.48478994,2085.6,2084.9,1.92958336]
[1771084502646,1.66913419,2085.5,2084.9,1.92958336]
[1771084503845,1.66913419,2084.9,2084.4,1.77546006]
[1771084504041,1.66913419,2084.7,2084.4,1.77546006]
[1771084504543,1.66913419,2085.2,2084.4,1.77546006]
[1771084504739,1.66913419,2085.2,2084.4,1.77897041]
[1771084505436,1.66913419,2085.2,2084.5,1.77546006]
[1771084505636,1.66913419,2085.2,2084.7,1.77546006]
[1771084506146,1.66913419,2085.2,2084.7,1.27546006]
[1771084506541,1.66913419,2085.5,2084.7,1.27546006]
[1771084507644,1.66913419,2085.5,2084.9,1.77546006]
[1771084508850,1.66913419,2085.9,2085.3,1.77546006]
[1771084509850,1.67345847,2085.9,2085.3,1.77546006]
[1771084510651,1.17847847,2085.9,2085.5,1.77546006]
[1771084510948,1.66913419,2086.2,2085.7,1.77546006]
[1771084511552,42.46913419,2086.2,2085.7,1.77546006]
[1771084511953,42.47435792,2086.2,2085.7,1.77546006]
[1771084512156,1.66913419,2086.1,2085.6,2.01528006]
[1771084521665,1.66913419,2086.1,2085.6,0.23982]
[1771084521869,1.66913419,2086.1,2085.6,2.01528006]
[1771084522568,1.66913419,2086.1,2085.6,0.23982]
[1771084522768,1.66913419,2086.1,2085.6,2.01528006]
[1771084525572,1.66913419,2086.1,2085.6,0.23982]
[1771084528476,1.66913419,2086.1,2085.4,1.68550294]
[1771084529774,40.80522373,2086.2,2085.6,1.68550294]
[1771084530067,6.0241057,2087.0,2085.1,1.43080534]
[1771084530068,19.894,2086.4,2085.8,1.68550294]
[1771084530271,1.72533717,2086.4,2085.8,1.68550294]
[1771084530471,42.52533717,2086.4,2085.8,1.68550294]
[1771084531077,42.5291368,2086.4,2085.9,0.23978]
[1771084531266,42.5291368,2086.4,2086.0,1.7127067]
[1771084531471,1.72568908,2086.3,2086.0,1.2167067]
[1771084531772,42.52948871,2086.4,2086.0,1.2167067]
[1771084535074,42.52948871,2086.4,2085.9,0.24475551]
[1771084535075,1.72568908,2086.3,2085.9,1.95746221]
[1771084539978,40.80379963,2086.4,2085.9,1.95746221]
[1771084540478,42.52948871,2086.4,2085.9,1.95746221]
[1771084541980,1.81008658,2086.3,2085.9,1.95746221]
[1771084542484,1.81008658,2086.3,2085.9,0.24475551]
[1771084542675,1.81008658,2086.3,2085.6,1.74266569]
[1771084543176,1.81008658,2086.2,2085.4,0.23984]
[1771084543380,1.81008658,2086.0,2085.4,0.23984]
[1771084543777,1.81008658,2086.0,2085.4,0.24606884]
[1771084544781,1.81008658,2086.0,2085.4,1.98873453]
[1771084546973,21.70408658,2086.1,2085.4,1.98873453]
[1771084547582,1.81008658,2086.0,2085.4,1.98873453]
[1771084549081,19.894,2086.1,2085.4,1.98873453]
[1771084549786,21.70408658,2086.1,2085.4,1.98873453]
[1771084551088,1.81008658,2086.0,2085.4,1.98873453]
[1771084557586,21.70408658,2086.1,2085.4,1.98873453]
[1771084558093,1.81008658,2086.0,2085.4,1.98873453]
[1771084561495,21.73258856,2086.1,2085.4,1.98873453]
[1771084564100,1.83858856,2086.0,2085.4,1.98873453]
[1771084564401,19.894,2086.1,2085.4,1.98873453]
[1771084564601,1.83858856,2086.2,2085.4,1.98873453]
[1771084566398,1.83858856,2086.3,2086.0,1.95952552]
[1771084566599,42.64238819,2086.4,2086.0,1.95952552]
[1771084566800,42.64238819,2086.4,2086.0,1.45952552]
[1771084567204,1.84238819,2086.4,2086.0,1.45952552]
[1771084567708,1.75195566,2086.6,2086.0,1.45952552]
[1771084568004,19.894,2086.9,2086.4,1.95947552]
[1771084568302,0.70475369,2087.2,2086.4,1.95947552]
[1771084568704,0.00592591,2087.2,2086.4,1.95947552]
[1771084568900,5.91e-06,2087.2,2087.0,1.71975552]
[1771084569101,41.50691734,2087.5,2087.0,1.71975552]
[1771084569398,1.17850614,2087.4,2087.0,1.21975552]
[1771084569599,41.97850614,2087.5,2087.0,1.21975552]
[1771084569805,1.17850614,2087.5,2087.0,1.21975552]
[1771084569999,0.0050058,2087.5,2087.0,1.22578794]
[1771084570707,1.18604778,2087.5,2087.0,0.00603242]
[1771084570909,1.18604778,2087.5,2087.0,1.72578794]
[1771084572404,0.0050058,2087.5,2087.2,1.71975552]
[1771084572602,1.16337859,2087.7,2087.2,1.71975552]
[1771084573613,1.16904838,2087.7,2087.2,0.75798586]
[1771084573914,1.16904838,2087.7,2087.2,0.25798586]
[1771084574913,0.00566979,2087.7,2087.4,1.71975552]
[1771084575110,1.83858856,2087.8,2087.4,1.71975552]
[1771084575411,5.81758856,2088.0,2087.4,1.71975552]
[1771084576010,1.83858856,2087.8,2087.4,1.71975552]
[1771084576211,1.84221277,2087.8,2087.4,1.71975552]
[1771084576614,1.42853474,2088.3,2087.4,1.71975552]
[1771084576813,42.63858856,2088.2,2087.4,1.71975552]
[1771084577112,40.8,2088.2,2087.5,0.2396]
[1771084577302,1.83858856,2088.5,2087.8,1.71975552]
[1771084577505,0.00424585,2088.5,2088.0,1.71975552]
[1771084577812,40.80424585,2088.5,2088.0,1.71975552]
[1771084578015,0.00424585,2088.5,2088.0,1.71975552]
[1771084578219,0.00424585,2088.5,2088.2,1.71975552]
[1771084578409,1.83858856,2088.8,2088.4,1.71975552]
[1771084578712,1.83858856,2089.0,2088.4,1.71975552]
[1771084579115,42.63858856,2089.0,2088.4,1.71975552]
[1771084579314,40.80336737,2089.0,2088.4,1.71975552]
[1771084579514,0.00336737,2089.0,2088.4,1.71975552]
[1771084579814,0.00336737,2089.0,2088.6,1.71975552]
[1771084580013,0.00336737,2089.0,2088.6,1.72353205]
[1771084581616,1.83858856,2089.3,2088.6,1.72353205]
[1771084582504,1.83858856,2089.3,2088.8,1.71975552]
[1771084582716,0.00446648,2089.3,2088.8,1.71975552]
[1771084584215,1.83858856,2089.4,2088.8,1.71975552]
[1771084584216,0.60788162,2089.6,2088.8,1.71975552]
[1771084585221,0.61386574,2089.6,2088.8,1.71975552]
[1771084586016,0.61386574,2089.6,2088.7,0.23946]
[1771084586017,0.61386574,2089.6,2088.7,1.95921552]
[1771084586213,0.60902609,2089.4,2088.7,1.95921552]
[1771084587114,40.8,2089.5,2088.7,1.95921552]
[1771084587521,41.40670003,2089.5,2088.7,1.95921552]
[1771084587921,0.61336896,2089.4,2088.7,1.95921552]
[1771084589824,0.61336896,2089.4,2088.6,0.00377653]
[1771084590020,0.61336896,2089.4,2088.6,1.96300205]
[1771084591423,0.61336896,2089.4,2088.6,0.24324653]
[1771084592020,0.61336896,2089.4,2088.6,0.00377653]
[1771084592220,0.67947316,2089.3,2088.1,1.65767765]
[1771084592526,0.67947581,2089.1,2088.1,1.65767765]
[1771084592718,0.67947581,2089.1,2088.0,0.23953]
[1771084593430,0.67947581,2089.1,2088.0,0.00569962]
[1771084593631,19.873,2089.2,2087.8,1.65767765]
[1771084593632,0.66559479,2088.9,2087.8,1.65767765]
[1771084594430,0.66559479,2088.9,2088.0,1.65767765]
[1771084594833,0.66559479,2088.9,2088.0,1.66225545]
[1771084595430,0.71807777,2089.4,2088.2,1.65767765]
[1771084596722,0.71807777,2089.4,2088.3,0.23951]
[1771084596924,0.71807777,2089.4,2088.4,1.65767765]
[1771084598134,0.71807777,2089.4,2088.6,1.65767765]
[1771084598328,40.8,2089.5,2088.8,1.65767765]
[1771084598927,41.55843383,2089.5,2088.8,1.65767765]
[1771084599132,0.75843383,2089.4,2088.8,1.65767765]
[1771084601235,0.75843383,2089.4,2088.7,0.23946]
[1771084601630,0.75843383,2089.4,2088.7,1.93933626]
[1771084602231,40.8,2089.5,2088.7,1.93933626]
[1771084602534,0.72846663,2089.4,2088.7,1.93933626]
[1771084602731,0.72846663,2089.4,2088.7,0.23946]
[1771084603126,0.72846663,2089.4,2088.6,1.69987626]
[1771084604537,0.72846663,2089.4,2088.6,1.93934626]
[1771084605437,40.8,2089.5,2088.6,1.93934626]
[1771084607234,41.54992839,2089.5,2088.6,1.93934626]
[1771084607536,0.76205764,2089.4,2088.6,1.93934626]
[1771084612440,0.7786974,2089.2,2088.6,1.93934626]
[1771084616044,0.7786974,2089.2,2088.6,0.23947]
[1771084616338,0.7786974,2089.2,2088.6,1.93934626]
[1771084616542,0.7786974,2089.2,2088.6,1.69987626]
[1771084616747,0.84620484,2089.0,2088.2,1.69987626]
[1771084617451,0.84620484,2089.0,2088.3,1.93938626]
[1771084618543,0.86251972,2089.3,2088.3,1.93938626]
[1771084618748,7.22032046,2089.2,2088.3,1.93938626]
[1771084618949,6.35780074,2089.1,2088.3,1.93938626]
[1771084619152,0.86251972,2089.2,2088.3,1.93938626]
[1771084619347,6.3577994,2089.1,2088.3,1.93938626]
[1771084619540,0.86251972,2089.2,2088.3,1.93938626]
[1771084620350,19.869,2089.4,2088.3,1.93938626]
[1771084620351,0.89591153,2089.0,2088.3,1.93938626]
[1771084622752,0.89591153,2089.0,2088.3,1.69987626]
[1771084622946,0.89591153,2089.0,2088.2,1.7725178]
[1771084623550,0.91677923,2088.8,2088.0,1.7770956]
[1771084627247,5.427,2088.7,2088.0,0.0045778]
[1771084627458,0.94516297,2088.6,2087.8,1.7725178]
[1771084628256,0.94916994,2088.4,2087.8,1.7725178]
[1771084628457,0.94916994,2088.4,2087.8,1.77740589]
[1771084635257,0.94916994,2088.4,2087.8,0.00488809]
[1771084635457,0.94916994,2088.4,2087.6,1.7725178]
[1771084636658,0.94916994,2088.4,2087.6,1.77742945]
[1771084646466,0.94916994,2088.4,2087.6,1.27742945]
[1771084646767,1.48570407,2088.2,2087.6,1.27742945]
[1771084648663,1.48570407,2088.2,2087.5,1.7725178]
[1771084649669,1.48570407,2088.2,2087.5,1.77764009]
[1771084659280,1.52960311,2088.0,2087.5,1.77764009]
[1771084659473,1.53381123,2088.0,2087.5,1.77764009]
[1771084662377,0.00420812,2088.0,2087.5,1.77764009]
[1771084663176,1.54722466,2088.0,2087.5,1.77764009]
[1771084665586,1.55053143,2088.0,2087.5,1.77764009]
[1771084667181,0.00420812,2088.0,2087.5,1.77764009]
[1771084668686,21.41669378,2088.4,2087.5,1.77764009]
[1771084668881,6.35928665,2088.3,2087.5,1.77764009]
[1771084669082,6.35928665,2088.2,2087.5,1.77764009]
[1771084669388,21.41669378,2088.4,2087.5,1.77764009]
[1771084669574,6.36007427,2088.3,2087.5,1.77764009]
[1771084669776,19.88580952,2088.4,2087.7,1.88738045]
[1771084670176,0.00580952,2088.4,2087.7,1.88738045]
[1771084671482,40.8,2088.5,2087.7,1.88738045]
[1771084672589,40.8049492,2088.5,2087.9,1.88738045]
[1771084673889,42.63547981,2088.5,2087.9,1.88738045]
[1771084682195,1.83779386,2088.4,2087.9,1.88738045]
[1771084685505,40.8049492,2088.5,2087.9,1.88738045]
[1771084686099,42.64274306,2088.5,2087.9,1.88738045]
[1771084686911,1.83779386,2088.4,2087.9,1.88738045]
[1771084689505,1.83779386,2088.4,2087.8,0.23957]
[1771084689705,1.83779386,2088.4,2087.8,2.1652622]
[1771084690207,40.8049492,2088.5,2087.8,2.1652622]
[1771084691611,0.0049492,2088.5,2087.8,2.1652622]
[1771084693516,1.84274306,2088.5,2087.8,2.1652622]
[1771084695017,1.83779386,2088.4,2087.8,2.1652622]
[1771084698819,0.0049492,2088.5,2087.8,2.1652622]
[1771084699522,0.0049492,2088.5,2088.0,0.23954]
[1771084699819,0.0049492,2088.5,2088.1,1.9256922]
[1771084700224,0.0049492,2088.5,2088.1,1.4271922]
[1771084701520,1.84274306,2088.5,2088.1,1.4271922]
[1771084701815,0.0049492,2088.5,2088.1,1.4271922]
[1771084703523,1.84274306,2088.5,2088.1,1.4271922]
[1771084705425,1.83779386,2088.4,2088.0,2.1652322]
[1771084706620,0.0049492,2088.5,2088.0,2.1652322]
[1771084707727,9.2e-06,2088.5,2088.1,1.9256922]
[1771084710127,40.8,2088.8,2088.3,1.9256922]
[1771084710324,1.83779386,2088.7,2088.3,1.9256922]
[1771084711124,1.84340809,2088.7,2088.3,1.9256922]
[1771084715734,0.00561423,2088.7,2088.3,1.9256922]
[1771084715926,1.93923612,2088.7,2088.3,1.9256922]
[1771084719528,0.00561423,2088.7,2088.3,1.9256922]
[1771084719831,1.93923612,2088.7,2088.3,1.9256922]
[1771084721027,0.00561423,2088.7,2088.3,1.9256922]
[1771084722234,2.03033687,2088.7,2088.3,1.9256922]
[1771084722643,2.03033687,2088.7,2088.2,2.1577406]
[1771084722930,2.03033687,2088.7,2088.0,1.9182206]
[1771084722931,1.42766161,2088.5,2088.0,1.9182206]
[1771084723237,2.02472264,2088.4,2088.0,1.9182206]
[1771084723933,1.42766161,2088.3,2087.5,1.92334289]
[1771084724136,2.02472264,2088.3,2087.8,1.9182206]
[1771084726939,55.77272264,2088.5,2087.8,1.9182206]
[1771084727437,55.77272264,2088.5,2088.0,1.9182206]
[1771084728037,2.02472264,2088.4,2088.0,1.9182206]
[1771084730136,2.02472264,2088.4,2087.9,2.1577706]
[1771084733339,12.948,2088.5,2087.9,2.1577706]
[1771084734240,42.83033687,2088.7,2087.9,2.1577706]